{"text_format":"1","workbook":"xlsx","n_sheets":2,"sheets":["Лист1","Лист2"],"not_rendered":{"charts":0,"images":0,"macros":0,"external_links":0,"defined_names":2,"comments":0,"pivot_tables":1},"unopened":[],"bounds":{"document_bytes":16777216,"sheet_cells":100000,"rows_first":2000,"rows_last":500,"rows_between":2000,"halvings":0,"cell_chars":16384,"cell_head_chars":4096},"cells_cut":0,"cells_raw":0,"read":"whole","date_system":"1900"}

{"sheet":"Лист1","index":0,"n_rows":34,"n_cols":11,"rows_kept":34,"cut":false,"hidden":false,"merged":[]}
["D:\\Отчеты 2019\\*.xlsx"]
[]
[1,{"$f":"INDEX(Мои_файлы,A3)","v":"Барнаул.xlsx"},null,{"$f":"IFERROR(INDEX(Мои_файлы,ROWS($B$3:B3)),\"\")","v":"Барнаул.xlsx"}]
[2,{"$f":"INDEX(Мои_файлы,A4)","v":"Владивосток.xlsx"},null,{"$f":"IFERROR(INDEX(Мои_файлы,ROWS($B$3:B4)),\"\")","v":"Владивосток.xlsx"}]
[3,{"$f":"INDEX(Мои_файлы,A5)","v":"Волгоград.xlsx"},null,{"$f":"IFERROR(INDEX(Мои_файлы,ROWS($B$3:B5)),\"\")","v":"Волгоград.xlsx"},null,null," "]
[4,{"$f":"INDEX(Мои_файлы,A6)","v":"Воронеж.xlsx"},null,{"$f":"IFERROR(INDEX(Мои_файлы,ROWS($B$3:B6)),\"\")","v":"Воронеж.xlsx"}]
[5,{"$f":"INDEX(Мои_файлы,A7)","v":"Екатеринбург.xlsx"},null,{"$f":"IFERROR(INDEX(Мои_файлы,ROWS($B$3:B7)),\"\")","v":"Екатеринбург.xlsx"}]
[6,{"$f":"INDEX(Мои_файлы,A8)","v":"Ижевск.xlsx"},null,{"$f":"IFERROR(INDEX(Мои_файлы,ROWS($B$3:B8)),\"\")","v":"Ижевск.xlsx"}]
[7,{"$f":"INDEX(Мои_файлы,A9)","v":"Иркутск.xlsx"},null,{"$f":"IFERROR(INDEX(Мои_файлы,ROWS($B$3:B9)),\"\")","v":"Иркутск.xlsx"}]
[8,{"$f":"INDEX(Мои_файлы,A10)","v":"Казань.xlsx"},null,{"$f":"IFERROR(INDEX(Мои_файлы,ROWS($B$3:B10)),\"\")","v":"Казань.xlsx"}]
[9,{"$f":"INDEX(Мои_файлы,A11)","v":"Кемерово.xlsx"},null,{"$f":"IFERROR(INDEX(Мои_файлы,ROWS($B$3:B11)),\"\")","v":"Кемерово.xlsx"}]
[10,{"$f":"INDEX(Мои_файлы,A12)","v":"Краснодар.xlsx"},null,{"$f":"IFERROR(INDEX(Мои_файлы,ROWS($B$3:B12)),\"\")","v":"Краснодар.xlsx"}]
[11,{"$f":"INDEX(Мои_файлы,A13)","v":"Красноярск.xlsx"},null,{"$f":"IFERROR(INDEX(Мои_файлы,ROWS($B$3:B13)),\"\")","v":"Красноярск.xlsx"}]
[12,{"$f":"INDEX(Мои_файлы,A14)","v":"Москва.xlsx"},null,{"$f":"IFERROR(INDEX(Мои_файлы,ROWS($B$3:B14)),\"\")","v":"Москва.xlsx"}]
[13,{"$f":"INDEX(Мои_файлы,A15)","v":"Нижний Новгород.xlsx"},null,{"$f":"IFERROR(INDEX(Мои_файлы,ROWS($B$3:B15)),\"\")","v":"Нижний Новгород.xlsx"}]
[14,{"$f":"INDEX(Мои_файлы,A16)","v":"Новосибирск.xlsx"},null,{"$f":"IFERROR(INDEX(Мои_файлы,ROWS($B$3:B16)),\"\")","v":"Новосибирск.xlsx"}]
[15,{"$f":"INDEX(Мои_файлы,A17)","v":"Омск.xlsx"},null,{"$f":"IFERROR(INDEX(Мои_файлы,ROWS($B$3:B17)),\"\")","v":"Омск.xlsx"}]
[16,{"$f":"INDEX(Мои_файлы,A18)","v":"Оренбург.xlsx"},null,{"$f":"IFERROR(INDEX(Мои_файлы,ROWS($B$3:B18)),\"\")","v":"Оренбург.xlsx"}]
[17,{"$f":"INDEX(Мои_файлы,A19)","v":"Пенза.xlsx"},null,{"$f":"IFERROR(INDEX(Мои_файлы,ROWS($B$3:B19)),\"\")","v":"Пенза.xlsx"}]
[18,{"$f":"INDEX(Мои_файлы,A20)","v":"Пермь.xlsx"},null,{"$f":"IFERROR(INDEX(Мои_файлы,ROWS($B$3:B20)),\"\")","v":"Пермь.xlsx"}]
[19,{"$f":"INDEX(Мои_файлы,A21)","v":"Ростов-на-Дону.xlsx"},null,{"$f":"IFERROR(INDEX(Мои_файлы,ROWS($B$3:B21)),\"\")","v":"Ростов-на-Дону.xlsx"}]
[20,{"$f":"INDEX(Мои_файлы,A22)","v":"Самара.xlsx"},null,{"$f":"IFERROR(INDEX(Мои_файлы,ROWS($B$3:B22)),\"\")","v":"Самара.xlsx"}]
[21,{"$f":"INDEX(Мои_файлы,A23)","v":"Санкт-Петербург.xlsx"},null,{"$f":"IFERROR(INDEX(Мои_файлы,ROWS($B$3:B23)),\"\")","v":"Санкт-Петербург.xlsx"}]
[22,{"$f":"INDEX(Мои_файлы,A24)","v":"Ставрополь.xlsx"},null,{"$f":"IFERROR(INDEX(Мои_файлы,ROWS($B$3:B24)),\"\")","v":"Ставрополь.xlsx"}]
[23,{"$f":"INDEX(Мои_файлы,A25)","v":"Тула.xlsx"},null,{"$f":"IFERROR(INDEX(Мои_файлы,ROWS($B$3:B25)),\"\")","v":"Тула.xlsx"}]
[24,{"$f":"INDEX(Мои_файлы,A26)","v":"Уфа.xlsx"},null,{"$f":"IFERROR(INDEX(Мои_файлы,ROWS($B$3:B26)),\"\")","v":"Уфа.xlsx"}]
[25,{"$f":"INDEX(Мои_файлы,A27)","v":"Хабаровск.xlsx"},null,{"$f":"IFERROR(INDEX(Мои_файлы,ROWS($B$3:B27)),\"\")","v":"Хабаровск.xlsx"}]
[26,{"$f":"INDEX(Мои_файлы,A28)","v":"Челябинск.xlsx"},null,{"$f":"IFERROR(INDEX(Мои_файлы,ROWS($B$3:B28)),\"\")","v":"Челябинск.xlsx"}]
[27,{"$f":"INDEX(Мои_файлы,A29)","v":"Ярославль.xlsx"},null,{"$f":"IFERROR(INDEX(Мои_файлы,ROWS($B$3:B29)),\"\")","v":"Ярославль.xlsx"}]
[28,{"$f":"INDEX(Мои_файлы,A30)","v":{"$error":"#REF!"}},null,{"$f":"IFERROR(INDEX(Мои_файлы,ROWS($B$3:B30)),\"\")","v":""}]
[29,{"$f":"INDEX(Мои_файлы,A31)","v":{"$error":"#REF!"}},null,{"$f":"IFERROR(INDEX(Мои_файлы,ROWS($B$3:B31)),\"\")","v":""}]
[30,{"$f":"INDEX(Мои_файлы,A32)","v":{"$error":"#REF!"}},null,{"$f":"IFERROR(INDEX(Мои_файлы,ROWS($B$3:B32)),\"\")","v":""}]
[]
[null,null,null,null,null,null,null,null,null,null," "]

{"sheet":"Лист2","index":1,"n_rows":28,"n_cols":9,"rows_kept":28,"cut":false,"hidden":false,"merged":[]}
["Name","Folder Path","Диск","Папка1","Папка2","Ссылка"]
["Владивосток.xlsx","D:\\Отчеты\\Восток\\","D:","Отчеты","Восток",{"$f":"HYPERLINK(Отчеты[[#This Row],[Folder Path]]&Отчеты[[#This Row],[Name]],\">>>\")","v":">>>"},null,"Названия строк","Количество по полю Name"]
["Красноярск.xlsx","D:\\Отчеты\\Восток\\","D:","Отчеты","Восток",{"$f":"HYPERLINK(Отчеты[[#This Row],[Folder Path]]&Отчеты[[#This Row],[Name]],\">>>\")","v":">>>"},null,"Отчеты",27]
["Хабаровск.xlsx","D:\\Отчеты\\Восток\\","D:","Отчеты","Восток",{"$f":"HYPERLINK(Отчеты[[#This Row],[Folder Path]]&Отчеты[[#This Row],[Name]],\">>>\")","v":">>>"},null,"Восток",3]
["Барнаул.xlsx","D:\\Отчеты\\Сибирь\\","D:","Отчеты","Сибирь",{"$f":"HYPERLINK(Отчеты[[#This Row],[Folder Path]]&Отчеты[[#This Row],[Name]],\">>>\")","v":">>>"},null,"Сибирь",6]
["Иркутск.xlsx","D:\\Отчеты\\Сибирь\\","D:","Отчеты","Сибирь",{"$f":"HYPERLINK(Отчеты[[#This Row],[Folder Path]]&Отчеты[[#This Row],[Name]],\">>>\")","v":">>>"},null,"Урал",5]
["Кемерово.xlsx","D:\\Отчеты\\Сибирь\\","D:","Отчеты","Сибирь",{"$f":"HYPERLINK(Отчеты[[#This Row],[Folder Path]]&Отчеты[[#This Row],[Name]],\">>>\")","v":">>>"},null,"Центр",9]
["Новосибирск.xlsx","D:\\Отчеты\\Сибирь\\","D:","Отчеты","Сибирь",{"$f":"HYPERLINK(Отчеты[[#This Row],[Folder Path]]&Отчеты[[#This Row],[Name]],\">>>\")","v":">>>"},null,"Юг",4]
["Омск.xlsx","D:\\Отчеты\\Сибирь\\","D:","Отчеты","Сибирь",{"$f":"HYPERLINK(Отчеты[[#This Row],[Folder Path]]&Отчеты[[#This Row],[Name]],\">>>\")","v":">>>"},null,"Общий итог",27]
["Уфа.xlsx","D:\\Отчеты\\Сибирь\\","D:","Отчеты","Сибирь",{"$f":"HYPERLINK(Отчеты[[#This Row],[Folder Path]]&Отчеты[[#This Row],[Name]],\">>>\")","v":">>>"}]
["Екатеринбург.xlsx","D:\\Отчеты\\Урал\\","D:","Отчеты","Урал",{"$f":"HYPERLINK(Отчеты[[#This Row],[Folder Path]]&Отчеты[[#This Row],[Name]],\">>>\")","v":">>>"}]
["Ижевск.xlsx","D:\\Отчеты\\Урал\\","D:","Отчеты","Урал",{"$f":"HYPERLINK(Отчеты[[#This Row],[Folder Path]]&Отчеты[[#This Row],[Name]],\">>>\")","v":">>>"}]
["Оренбург.xlsx","D:\\Отчеты\\Урал\\","D:","Отчеты","Урал",{"$f":"HYPERLINK(Отчеты[[#This Row],[Folder Path]]&Отчеты[[#This Row],[Name]],\">>>\")","v":">>>"}]
["Пермь.xlsx","D:\\Отчеты\\Урал\\","D:","Отчеты","Урал",{"$f":"HYPERLINK(Отчеты[[#This Row],[Folder Path]]&Отчеты[[#This Row],[Name]],\">>>\")","v":">>>"}]
["Челябинск.xlsx","D:\\Отчеты\\Урал\\","D:","Отчеты","Урал",{"$f":"HYPERLINK(Отчеты[[#This Row],[Folder Path]]&Отчеты[[#This Row],[Name]],\">>>\")","v":">>>"}]
["Воронеж.xlsx","D:\\Отчеты\\Центр\\","D:","Отчеты","Центр",{"$f":"HYPERLINK(Отчеты[[#This Row],[Folder Path]]&Отчеты[[#This Row],[Name]],\">>>\")","v":">>>"}]
["Казань.xlsx","D:\\Отчеты\\Центр\\","D:","Отчеты","Центр",{"$f":"HYPERLINK(Отчеты[[#This Row],[Folder Path]]&Отчеты[[#This Row],[Name]],\">>>\")","v":">>>"}]
["Москва.xlsx","D:\\Отчеты\\Центр\\","D:","Отчеты","Центр",{"$f":"HYPERLINK(Отчеты[[#This Row],[Folder Path]]&Отчеты[[#This Row],[Name]],\">>>\")","v":">>>"}]
["Нижний Новгород.xlsx","D:\\Отчеты\\Центр\\","D:","Отчеты","Центр",{"$f":"HYPERLINK(Отчеты[[#This Row],[Folder Path]]&Отчеты[[#This Row],[Name]],\">>>\")","v":">>>"}]
["Пенза.xlsx","D:\\Отчеты\\Центр\\","D:","Отчеты","Центр",{"$f":"HYPERLINK(Отчеты[[#This Row],[Folder Path]]&Отчеты[[#This Row],[Name]],\">>>\")","v":">>>"}]
["Самара.xlsx","D:\\Отчеты\\Центр\\","D:","Отчеты","Центр",{"$f":"HYPERLINK(Отчеты[[#This Row],[Folder Path]]&Отчеты[[#This Row],[Name]],\">>>\")","v":">>>"}]
["Санкт-Петербург.xlsx","D:\\Отчеты\\Центр\\","D:","Отчеты","Центр",{"$f":"HYPERLINK(Отчеты[[#This Row],[Folder Path]]&Отчеты[[#This Row],[Name]],\">>>\")","v":">>>"}]
["Тула.xlsx","D:\\Отчеты\\Центр\\","D:","Отчеты","Центр",{"$f":"HYPERLINK(Отчеты[[#This Row],[Folder Path]]&Отчеты[[#This Row],[Name]],\">>>\")","v":">>>"}]
["Ярославль.xlsx","D:\\Отчеты\\Центр\\","D:","Отчеты","Центр",{"$f":"HYPERLINK(Отчеты[[#This Row],[Folder Path]]&Отчеты[[#This Row],[Name]],\">>>\")","v":">>>"}]
["Волгоград.xlsx","D:\\Отчеты\\Юг\\","D:","Отчеты","Юг",{"$f":"HYPERLINK(Отчеты[[#This Row],[Folder Path]]&Отчеты[[#This Row],[Name]],\">>>\")","v":">>>"}]
["Краснодар.xlsx","D:\\Отчеты\\Юг\\","D:","Отчеты","Юг",{"$f":"HYPERLINK(Отчеты[[#This Row],[Folder Path]]&Отчеты[[#This Row],[Name]],\">>>\")","v":">>>"}]
["Ростов-на-Дону.xlsx","D:\\Отчеты\\Юг\\","D:","Отчеты","Юг",{"$f":"HYPERLINK(Отчеты[[#This Row],[Folder Path]]&Отчеты[[#This Row],[Name]],\">>>\")","v":">>>"}]
["Ставрополь.xlsx","D:\\Отчеты\\Юг\\","D:","Отчеты","Юг",{"$f":"HYPERLINK(Отчеты[[#This Row],[Folder Path]]&Отчеты[[#This Row],[Name]],\">>>\")","v":">>>"}]